bitfinex/quotes_SOLUSD_20240821
["timestamp","ask_amount","ask_price","bid_price","bid_amount"]
[1724263333865,7.0576,141.69,141.64,7.06]
[1724263334109,20.0,141.68,141.62,17.6523]
[1724263334373,7.0577,141.69,141.64,7.0601]
[1724263334745,20.0,141.68,141.64,7.0601]
[1724263334947,20.0,141.68,141.65,7.0594]
[1724263335169,57.7059,141.73,141.64,17.6492]
[1724263335547,6.359,141.75,141.65,1.41121294]
[1724263335754,56.903,141.77,141.65,43.21121294]
[1724263336270,7.055,141.75,141.7,7.057]
[1724263336457,7.0553,141.74,141.69,7.0574]
[1724263336762,7.0553,141.74,141.68,17.6444]
[1724263337141,7.0547,141.75,141.7,7.057]
[1724263337338,15.103,141.77,141.71,1.41121378]
[1724263337535,15.103,141.77,141.67,93.0198]
[1724263337750,56.903,141.77,141.67,15.9272]
[1724263338250,7.0556,141.74,141.69,24.7012]
[1724263339574,7.0557,141.73,141.69,17.6437]
[1724263340680,7.0552,141.74,141.69,24.7013]
[1724263341448,15.103,141.77,141.7,1.41147089]
[1724263341655,15.103,141.77,141.72,7.0561]
[1724263342868,27.0541,141.76,141.72,7.0561]
[1724263343764,27.0541,141.76,141.71,7.0565]
[1724263343972,20.0,141.76,141.69,17.6437]
[1724263344174,20.0,141.76,141.64,21.5324]
[1724263344175,7.0562,141.72,141.68,7.058]
[1724263344981,7.0557,141.73,141.68,7.058]
[1724263345362,1.35141415,141.72,141.65,7.0596]
[1724263345571,7.0572,141.7,141.65,7.0596]
[1724263345879,8.40911415,141.69,141.65,7.0596]
[1724263346064,41.8,141.71,141.65,7.0596]
[1724263346262,27.0572,141.7,141.65,7.0596]
[1724263347001,20.0,141.7,141.66,7.0589]
[1724263347875,27.0573,141.7,141.66,6.7589]
[1724263348457,20.0,141.7,141.66,6.7589]
[1724263349268,27.0572,141.7,141.66,6.7589]
[1724263349680,27.0572,141.7,141.65,17.6485]
[1724263349681,1.35141415,141.69,141.65,24.7081]
[1724263349858,1.35141415,141.69,141.63,35.3023]
[1724263349859,1.35141415,141.68,141.62,17.6526]
[1724263350204,1.35141415,141.67,141.63,7.0606]
[1724263350666,7.0588,141.67,141.62,24.7136]
[1724263350979,7.0588,141.67,141.63,7.0606]
[1724263351571,1.35141415,141.66,141.63,7.0606]
[1724263352363,7.0592,141.66,141.62,17.6526]
[1724263352694,21.35141415,141.65,141.61,7.0615]
[1724263352883,20.0,141.65,141.61,7.0615]
[1724263353261,1.35141415,141.64,141.61,7.0615]
[1724263353476,41.8,141.63,141.56,18.4938037]
[1724263353785,27.0612,141.62,141.57,7.0634]
[1724263354586,27.0612,141.62,141.56,25.5578037]
[1724263354991,1.35141415,141.61,141.56,25.5578037]
[1724263355195,8.41311415,141.61,141.56,25.5578037]
[1724263355369,8.41361415,141.6,141.56,18.4938037]
[1724263356189,1.35141415,141.59,141.56,18.4938037]
[1724263356890,1.35141415,141.59,141.56,0.8339037]
[1724263359161,1.35141415,141.58,141.56,0.8339037]
[1724263359494,1.35141415,141.57,141.56,0.8339037]
[1724263359791,7.0636,141.57,141.56,0.8339037]
[1724263361063,8.41501415,141.57,141.56,0.8339037]
[1724263361394,128.9265,141.57,141.56,0.8339037]
[1724263361573,130.27791415,141.57,141.56,0.8339037]
[1724263361759,128.9265,141.57,141.56,0.8339037]
[1724263362188,7.0647,141.55,141.5,7.0667]
[1724263362372,1.35141415,141.54,141.49,24.7363]
[1724263362571,20.0,141.56,141.5,7.067]
[1724263362765,53.41651415,141.55,141.5,7.067]
[1724263363074,1.35141415,141.54,141.5,7.067]
[1724263363468,7.0666,141.51,141.45,24.0662]
[1724263363660,1.35141415,141.5,141.45,24.0662]
[1724263363872,7.0661,141.52,141.45,24.0662]
[1724263364198,52.0668,141.51,141.46,7.069]
[1724263364500,7.0662,141.52,141.46,7.069]
[1724263364685,93.865,141.55,141.47,17.6709]
[1724263364872,7.066,141.53,141.43,51.6036]
[1724263365071,7.0667,141.51,141.42,0.8339037]
[1724263365292,20.0,141.5,141.42,0.8339037]
[1724263365602,20.0,141.5,141.42,42.6339037]
[1724263365800,7.0667,141.51,141.42,0.8339037]
[1724263365979,27.0662,141.52,141.42,0.8339037]
[1724263366176,20.0,141.52,141.43,35.3527]
[1724263366387,20.0,141.54,141.43,35.3527]
[1724263366598,45.0,141.53,141.43,35.3527]
[1724263366804,20.0,141.52,141.43,35.3527]
[1724263367094,7.067,141.51,141.45,7.0695]
[1724263367311,7.067,141.51,141.46,7.0689]
[1724263368396,41.8,141.49,141.44,24.7448]
[1724263368619,20.0,141.52,141.47,7.0682]
[1724263368899,20.0,141.52,141.46,17.6721]
[1724263368900,20.0,141.52,141.48,7.068]
[1724263369280,1.35141415,141.51,141.48,7.068]
[1724263369480,1.35141415,141.51,141.47,7.0685]
[1724263370105,1.35141415,141.51,141.43,17.6762]
[1724263370311,46.35141415,141.51,141.43,17.6762]
[1724263370510,7.0678,141.49,141.44,7.0697]
[1724263370886,41.8,141.47,141.43,17.6762]
[1724263371088,17.16171415,141.46,141.43,17.6762]
[1724263371297,1.35141415,141.48,141.44,7.07]
[1724263371482,15.8103,141.49,141.43,17.6762]
[1724263371691,15.8103,141.49,141.45,7.0695]
[1724263372107,15.8103,141.49,141.43,17.6762]
[1724263372291,15.8103,141.49,141.44,7.0697]
[1724263372492,17.16171415,141.49,141.45,7.0696]
[1724263373287,17.16171415,141.49,141.43,17.6762]
[1724263373288,1.35141415,141.48,141.44,7.07]
[1724263373613,15.8103,141.49,141.44,7.07]
[1724263373798,15.8103,141.49,141.45,7.0694]
[1724263373982,15.889,141.52,141.49,7.0676]
[1724263374183,15.889,141.56,141.45,48.1812]
[1724263374393,15.889,141.56,141.51,7.0666]
[1724263374695,15.889,141.56,141.51,17.666]
[1724263374696,22.9532,141.56,141.51,17.666]
[1724263374892,15.889,141.56,141.51,24.7322]
[1724263375122,1.35141415,141.55,141.51,24.7322]
[1724263375304,22.9533,141.56,141.51,17.666]
[1724263376409,7.0648,141.55,141.51,17.666]
[1724263376613,1.35141415,141.54,141.48,17.6697]
[1724263376788,1.35141415,141.54,141.49,7.0672]
[1724263376992,72.0655,141.54,141.49,7.0672]
[1724263377216,1.35141415,141.53,141.48,24.7377]
[1724263377511,7.066,141.53,141.48,24.7377]
[1724263377708,8.41741415,141.53,141.48,24.7377]
[1724263377908,7.066,141.53,141.48,24.7377]
[1724263378213,72.0652,141.54,141.48,24.7377]
[1724263378514,7.0656,141.53,141.48,24.7377]
[1724263378885,1.35141415,141.52,141.48,24.7377]
[1724263379106,7.0661,141.52,141.47,7.0685]
[1724263380107,7.0667,141.51,141.46,7.069]
[1724263380323,65.0,141.54,141.43,35.3529]
[1724263380493,7.0657,141.53,141.48,7.0677]
[1724263380814,7.0657,141.53,141.47,17.671]
[1724263380815,72.0651,141.54,141.49,7.0674]
[1724263381010,7.0647,141.55,141.5,7.0671]
[1724263381248,15.889,141.56,141.52,7.0656]
[1724263381723,15.889,141.56,141.53,7.0656]
[1724263382209,16.3522,141.59,141.55,7.0646]
[1724263382996,8.41451415,141.58,141.53,24.7286]
[1724263383320,23.4148,141.59,141.54,7.065]
[1724263383912,7.0631,141.58,141.53,24.7289]
[1724263384092,23.4149,141.59,141.54,7.065]
[1724263384510,16.3522,141.59,141.55,7.0646]
[1724263385214,16.524,141.64,141.56,1.4128496]
[1724263385514,7.061,141.63,141.57,17.6583]
[1724263386804,16.524,141.64,141.6,7.062]
[1724263386989,20.0,141.63,141.57,17.6583]
[1724263387191,8.41261415,141.62,141.57,24.7218]
[1724263387529,7.0616,141.61,141.54,17.6622]
[1724263388397,1.35141415,141.6,141.54,17.6622]
[1724263388598,1.35141415,141.6,141.55,7.0642]
[1724263388799,1.35141415,141.6,141.54,24.7272]
[1724263389106,1.35141415,141.6,141.54,17.6622]
[1724263389107,52.0622,141.6,141.54,17.6622]
[1724263389329,7.0617,141.61,141.56,7.0641]
[1724263389993,7.0612,141.62,141.57,7.0636]
[1724263390196,20.0,141.63,141.51,83.4641]
[1724263390197,20.0,141.63,141.56,17.6594]
[1724263390404,28.41241415,141.63,141.58,7.0631]
[1724263391019,7.0611,141.62,141.57,7.0635]
[1724263391415,7.0611,141.62,141.56,24.7234]
[1724263391730,7.0611,141.62,141.57,7.0635]
[1724263391896,27.0608,141.63,141.57,7.0635]
[1724263392095,27.0608,141.63,141.57,6.8635]
[1724263392517,27.0608,141.63,141.58,7.0629]
[1724263392718,16.524,141.64,141.58,17.6569]
[1724263393108,16.524,141.64,141.59,7.0625]
[1724263393304,17.87541415,141.64,141.59,7.0625]
[1724263393834,16.524,141.64,141.59,7.0625]
[1724263394050,7.0611,141.62,141.58,17.6569]
[1724263395130,1.35141415,141.61,141.57,7.0632]
[1724263395321,8.41301415,141.61,141.56,7.064]
[1724263395522,1.35141415,141.6,141.56,7.064]
[1724263395733,7.0607,141.63,141.55,17.6608]
[1724263396040,7.0607,141.63,141.53,41.8]
[1724263396214,16.524,141.64,141.59,7.0621]
[1724263397037,16.524,141.64,141.6,7.062]
[1724263397219,7.0607,141.63,141.58,7.063]
[1724263397424,7.0627,141.59,141.54,24.727]
[1724263397667,40.6217,141.61,141.55,7.0641]
[1724263397835,7.0617,141.61,141.55,7.0641]
[1724263398138,16.524,141.64,141.58,7.0627]
[1724263398327,20.0,141.63,141.55,33.56]
[1724263398522,16.524,141.64,141.59,7.0621]
[1724263398836,16.524,141.64,141.58,17.6573]
[1724263398837,16.524,141.64,141.6,17.6547]
[1724263399821,16.524,141.64,141.6,24.7167]
[1724263400011,7.0609,141.63,141.58,7.0627]
[1724263400221,16.524,141.64,141.58,17.6572]
[1724263400540,16.524,141.64,141.55,33.56]
[1724263400737,23.3671,141.67,141.6,17.6548]
[1724263401043,23.3671,141.67,141.61,1.41210856]
[1724263401242,23.3671,141.67,141.6,17.6548]
[1724263401442,23.3671,141.67,141.61,7.0615]
[1724263401650,16.3084,141.67,141.6,17.6548]
[1724263401816,16.3084,141.67,141.65,7.0595]
[1724263402023,6.1578,141.7,141.65,7.0595]
[1724263402744,15.672,141.71,141.66,7.059]
[1724263402947,15.672,141.71,141.67,7.0584]
[1724263403327,1.35141415,141.7,141.66,7.059]
[1724263403658,22.7287,141.71,141.66,7.059]
[1724263404747,1.35141415,141.7,141.66,7.059]
[1724263406142,7.0577,141.69,141.62,17.6523]
[1724263406340,7.0572,141.7,141.64,7.0599]
[1724263406543,22.7287,141.71,141.65,7.0595]
[1724263406732,15.672,141.71,141.64,17.6494]
[1724263407045,22.7291,141.71,141.65,7.0596]
[1724263407249,15.672,141.71,141.65,7.0596]
[1724263407450,1.35141415,141.7,141.65,7.0596]
[1724263407845,15.672,141.71,141.65,7.0596]
[1724263408024,7.0576,141.69,141.64,24.7095]
[1724263408654,7.0572,141.7,141.65,7.0596]
[1724263409251,7.0577,141.69,141.64,24.7095]
[1724263409436,7.0571,141.7,141.65,7.0595]
[1724263409758,7.0571,141.7,141.64,17.6494]
[1724263409759,22.7287,141.71,141.66,7.0591]
[1724263410058,1.35141415,141.7,141.66,7.0591]
[1724263410427,22.7287,141.71,141.66,7.0591]
[1724263411055,7.0572,141.7,141.65,7.0595]
[1724263411432,8.40861415,141.7,141.65,7.0595]
[1724263411630,7.0572,141.7,141.65,7.0595]
[1724263412152,8.40861415,141.7,141.65,7.0595]
[1724263412355,7.0572,141.7,141.65,7.0595]
[1724263414251,22.7288,141.71,141.66,7.0591]
[1724263415257,22.7288,141.71,141.67,7.0586]
[1724263415738,15.672,141.71,141.67,7.0586]
[1724263416137,22.6099,141.74,141.68,19.05622676]
[1724263416335,22.6099,141.74,141.68,17.6448]
[1724263416544,22.6099,141.74,141.69,7.0576]
[1724263416826,1.35141415,141.73,141.65,17.6483]
[1724263417032,7.0572,141.7,141.65,24.7078]
[1724263417453,7.0572,141.7,141.66,7.0591]
[1724263418034,41.91,141.72,141.66,7.0591]
[1724263418251,7.0571,141.7,141.65,24.7077]
[1724263418458,8.40851415,141.7,141.65,24.7077]
[1724263418959,7.0577,141.69,141.64,7.0599]
[1724263420264,7.0571,141.7,141.65,7.0593]
[1724263420441,7.0567,141.71,141.67,7.0586]
[1724263420643,22.6099,141.74,141.63,41.91]
[1724263420856,7.0559,141.73,141.68,24.7031]
[1724263421036,7.0561,141.72,141.68,17.6451]
[1724263421355,7.0578,141.69,141.65,17.6484]
[1724263422231,1.35141415,141.71,141.62,17.6519]
[1724263422456,41.91,141.7,141.62,17.6519]
[1724263422632,15.4715,141.67,141.6,7.0618]
[1724263422856,7.0597,141.65,141.6,7.0618]
[1724263423065,1.35141415,141.66,141.59,17.6559]
[1724263423066,1.35141415,141.66,141.61,7.0616]
[1724263423272,1.35141415,141.65,141.56,6.4511]
[1724263423564,1.35141415,141.65,141.57,7.0634]
[1724263423565,7.061,141.63,141.57,7.0634]
[1724263423858,15.7015,141.61,141.56,17.6599]
[1724263424450,8.41351415,141.6,141.56,17.6599]
[1724263424654,15.7015,141.61,141.56,17.6599]
[1724263424655,22.7632,141.61,141.56,17.6599]
[1724263425053,8.41351415,141.6,141.54,7.065]
[1724263425952,7.0621,141.6,141.54,7.065]
[1724263426567,7.0627,141.59,141.54,7.065]
[1724263426860,7.0622,141.6,141.54,7.065]
[1724263427457,22.7634,141.61,141.55,7.0642]
[1724263427690,7.0623,141.6,141.55,7.0642]
[1724263427866,7.0623,141.6,141.54,7.065]
[1724263428658,7.0626,141.59,141.54,7.065]
[1724263429467,8.41451415,141.58,141.53,24.729]
[1724263429865,7.0627,141.59,141.54,7.0649]
[1724263430368,6.5021,141.6,141.55,17.661]
[1724263430664,22.7631,141.61,141.56,7.064]
[1724263430871,7.0625,141.6,141.55,24.7255]
[1724263431049,7.0627,141.59,141.55,17.661]
[1724263431439,15.7015,141.61,141.55,17.661]
[1724263432447,7.0625,141.6,141.55,24.7255]
[1724263432678,33.58,141.6,141.52,17.6647]
[1724263432867,7.0641,141.56,141.52,17.6647]
[1724263433084,7.0641,141.56,141.49,35.337]
[1724263433085,7.065,141.55,141.5,7.067]
[1724263433280,33.58,141.58,141.49,17.6683]
[1724263433579,7.065,141.55,141.5,7.067]
[1724263434483,7.065,141.55,141.49,17.6683]
[1724263434484,16.428,141.54,141.49,17.6683]
[1724263434685,51.35941415,141.54,141.47,7.0682]
[1724263435157,7.0662,141.52,141.47,7.0682]
[1724263435353,23.4932,141.54,141.49,7.0676]
[1724263436579,1.35141415,141.53,141.48,24.7378]
[1724263436868,23.4932,141.54,141.48,24.7378]
[1724263437249,23.4932,141.54,141.49,7.0674]
[1724263437469,16.428,141.54,141.5,7.067]
[1724263438178,16.428,141.54,141.51,7.0666]
[1724263438475,16.428,141.54,141.52,7.066]
[1724263438856,16.428,141.54,141.51,7.0664]
[1724263439985,16.428,141.54,141.5,24.734]
[1724263440481,16.428,141.54,141.51,7.0665]
[1724263440700,15.9749,141.58,141.56,7.0637]
[1724263441386,6.6014,141.61,141.57,7.0635]
[1724263441686,13.6634,141.61,141.56,24.7236]
[1724263442174,6.6014,141.61,141.56,24.7236]
[1724263443367,6.6014,141.61,141.57,7.0635]
[1724263443767,7.95281415,141.61,141.57,7.0635]
[1724263443964,15.2793,141.62,141.58,7.0631]
[1724263446378,15.2793,141.62,141.58,24.72]
[1724263446767,22.3404,141.62,141.58,17.6574]
[1724263446959,1.35141415,141.61,141.58,17.6574]
[1724263447161,22.3404,141.62,141.58,17.6574]
[1724263447563,1.35141415,141.61,141.58,17.6574]
[1724263448584,22.3404,141.62,141.58,17.6574]
[1724263448786,15.2793,141.62,141.58,24.7205]
[1724263449088,28.9338,141.65,141.6,7.0621]
[1724263449260,20.0,141.64,141.6,7.0621]
[1724263449461,15.2772,141.65,141.6,17.655]
[1724263449663,15.2772,141.65,141.62,7.0607]
[1724263450165,15.2772,141.65,141.61,7.0614]
[1724263450464,15.2772,141.65,141.62,17.6524]
[1724263450673,22.7328,141.69,141.64,7.0598]
[1724263450875,15.675,141.69,141.66,7.0587]
[1724263451463,15.675,141.69,141.65,7.0596]
[1724263451779,15.675,141.69,141.64,24.7098]
[1724263451978,15.675,141.69,141.65,7.0595]
[1724263452364,17.02641415,141.69,141.65,7.0595]
[1724263452583,15.675,141.69,141.65,7.0595]
[1724263453984,7.0567,141.71,141.66,7.0589]
[1724263454687,15.3616,141.72,141.67,7.0585]
[1724263454924,22.4177,141.72,141.67,7.0585]
[1724263455073,7.0567,141.71,141.66,24.7062]
[1724263455269,7.0572,141.7,141.63,17.6511]
[1724263455592,1.35141415,141.69,141.65,7.0595]
[1724263455777,7.0573,141.7,141.65,7.0595]
[1724263456381,7.0573,141.7,141.64,7.0601]
[1724263457718,7.0576,141.69,141.64,7.0601]
[1724263458667,7.0581,141.68,141.63,24.7116]
[1724263458885,1.35141415,141.67,141.63,17.6511]
[1724263459097,7.0581,141.68,141.63,17.6511]
[1724263459686,1.35141415,141.67,141.63,17.6511]
[1724263459877,8.41011415,141.67,141.6,24.1804]
[1724263460188,1.35141415,141.67,141.6,17.6546]
[1724263460377,39.706,141.68,141.6,17.6546]
[1724263460580,20.0,141.67,141.6,17.6546]
[1724263460775,8.41091415,141.66,141.6,17.6546]
[1724263460996,8.41091415,141.66,141.61,7.0616]
[1724263461174,7.0595,141.66,141.61,7.0616]
[1724263461376,7.0595,141.66,141.6,17.6546]
[1724263461377,7.0597,141.65,141.6,24.7166]
[1724263461582,7.0592,141.66,141.61,7.0615]
[1724263461920,27.0587,141.67,141.62,7.061]
[1724263462194,28.41011415,141.67,141.62,7.061]
[1724263462709,7.0592,141.66,141.61,7.0615]
[1724263463007,16.81231415,141.65,141.57,17.6582]
[1724263465490,7.0612,141.62,141.57,7.0633]
[1724263465685,7.0608,141.63,141.58,7.063]
[1724263466294,15.4609,141.65,141.58,17.6574]
[1724263466613,15.4609,141.65,141.61,7.0615]
[1724263466771,15.4609,141.65,141.6,17.655]
[1724263466772,15.4609,141.65,141.62,7.061]
[1724263467399,22.7272,141.69,141.64,7.0596]
[1724263467599,22.7272,141.69,141.65,7.0593]
[1724263467600,15.6692,141.69,141.65,7.0593]
[1724263467778,15.6692,141.69,141.64,17.6499]
[1724263467779,22.7269,141.69,141.64,24.7098]
[1724263468283,1.35141415,141.68,141.64,24.7098]
[1724263468485,22.7269,141.69,141.64,24.7098]
[1724263470001,1.35141415,141.68,141.64,24.7098]
[1724263470200,8.40951415,141.68,141.64,17.6499]
[1724263470502,7.0581,141.68,141.64,17.6499]
[1724263472408,15.6692,141.69,141.64,24.7098]
[1724263472610,15.6692,141.69,141.65,7.0595]
[1724263472906,15.6692,141.69,141.66,7.0591]
[1724263473117,59.5687,141.74,141.67,7.0586]
[1724263473118,22.8148,141.72,141.67,7.0586]
[1724263473411,20.0,141.71,141.67,7.0586]
[1724263474294,20.0,141.71,141.66,17.6473]
[1724263474295,15.7585,141.72,141.68,7.0578]
[1724263474689,24.16601415,141.72,141.66,24.706]
[1724263474882,17.10991415,141.72,141.66,17.6473]
[1724263475082,7.0577,141.69,141.64,7.0598]
[1724263475295,7.0572,141.7,141.65,7.0594]
[1724263475511,1.35141415,141.69,141.65,7.0594]
[1724263475694,7.0576,141.69,141.65,7.0594]
[1724263475891,8.40871415,141.7,141.65,7.0594]
[1724263476295,7.0577,141.69,141.64,7.0599]
[1724263476989,7.0577,141.69,141.65,7.0596]
[1724263477491,7.0573,141.7,141.65,7.0596]
[1724263479411,57.6885,141.72,141.65,17.6484]
[1724263479412,7.0566,141.71,141.65,17.6484]
[1724263479615,15.7585,141.72,141.68,7.0578]
[1724263479909,15.7585,141.72,141.67,24.7041]
[1724263479910,22.8146,141.72,141.67,24.7041]
[1724263482222,15.7585,141.72,141.68,7.058]
[1724263482402,15.7585,141.72,141.69,7.0575]
[1724263482583,7.0553,141.74,141.69,7.0575]
[1724263483105,15.8879,141.76,141.69,17.6435]
[1724263483290,22.9425,141.76,141.7,7.0568]
[1724263483495,22.9425,141.76,141.71,7.0563]
[1724263483496,15.8879,141.76,141.71,7.0563]
[1724263484307,22.9425,141.76,141.7,7.057]
[1724263486217,7.0549,141.75,141.69,24.701]
[1724263486603,7.0556,141.74,141.69,17.6435]
[1724263486803,7.0556,141.74,141.69,24.701]
[1724263487211,7.0557,141.73,141.69,17.6435]
[1724263487407,1.35141415,141.72,141.65,17.6479]
[1724263487609,7.0567,141.71,141.66,7.059]
[1724263487786,41.93,141.74,141.65,24.7075]
[1724263487787,8.40851415,141.7,141.65,24.7075]
[1724263487992,7.0568,141.71,141.65,24.7075]
[1724263489090,7.0568,141.71,141.66,7.059]
[1724263489291,7.0576,141.69,141.65,17.6479]
[1724263489591,7.0571,141.71,141.65,24.7075]
[1724263490115,7.0563,141.72,141.66,7.0588]
[1724263490286,8.40811415,141.71,141.66,7.0588]
[1724263490491,7.0567,141.71,141.66,7.0588]
[1724263490915,40.586,141.73,141.67,7.0585]
[1724263491216,20.0,141.72,141.67,7.0585]
[1724263491413,27.0563,141.72,141.67,7.0585]
[1724263491626,27.0563,141.72,141.66,7.059]
[1724263491830,7.0557,141.73,141.67,7.0582]
[1724263492020,7.0557,141.73,141.68,7.0579]
[1724263492222,7.0552,141.74,141.69,7.0574]
[1724263492533,15.8879,141.76,141.69,7.0574]
[1724263492705,27.0548,141.75,141.7,7.0571]
[1724263492904,27.0548,141.75,141.69,7.0575]
[1724263492905,7.0553,141.74,141.69,7.0575]
[1724263493724,8.40671415,141.74,141.68,7.0581]
[1724263494113,7.0565,141.72,141.67,17.6457]
[1724263494325,7.0558,141.73,141.67,17.6457]
[1724263494636,1.35141415,141.74,141.67,17.6457]
[1724263494637,60.5847,141.75,141.69,7.0572]
[1724263494815,27.0547,141.75,141.69,7.0572]
[1724263495213,7.0552,141.74,141.69,7.0572]
[1724263496041,7.0558,141.73,141.67,17.6457]
[1724263496337,7.0557,141.73,141.67,24.7042]
[1724263496538,7.0553,141.74,141.68,7.058]
[1724263496736,7.0553,141.74,141.69,7.0575]
[1724263497036,8.40671415,141.74,141.69,7.0575]
[1724263497212,7.0563,141.72,141.67,24.7042]
[1724263497710,7.0558,141.73,141.67,24.7042]
[1724263497916,7.0557,141.73,141.68,7.058]
[1724263499323,7.0551,141.74,141.69,7.0574]
[1724263499827,20.0,141.75,141.7,7.0567]
[1724263500140,7.0551,141.74,141.69,24.7009]
[1724263501213,15.8879,141.76,141.69,17.6435]
[1724263501515,22.9421,141.76,141.71,7.0563]
[1724263501722,15.8879,141.76,141.72,7.056]
[1724263502113,15.8879,141.76,141.7,45.0]
[1724263502114,15.8473,141.8,141.73,7.0552]
[1724263502338,7.0528,141.79,141.73,7.0555]
[1724263502539,15.8473,141.8,141.75,7.0545]
[1724263503224,22.8995,141.8,141.75,7.0545]
[1724263503650,7.0527,141.79,141.73,24.6935]
[1724263504343,15.8473,141.8,141.74,45.0]
[1724263505139,15.8473,141.8,141.76,7.0536]
[1724263505845,15.8473,141.8,141.75,17.6355]
[1724263506714,7.0528,141.79,141.74,7.0546]
[1724263506925,7.0534,141.78,141.72,17.6398]
[1724263507119,7.0534,141.78,141.69,31.3024]
[1724263507120,7.0547,141.75,141.69,31.3024]
[1724263507318,34.88141415,141.77,141.69,17.6435]
[1724263507319,7.0554,141.74,141.69,17.6435]
[1724263507522,7.0558,141.73,141.67,7.0585]
[1724263507836,7.0564,141.72,141.67,7.0585]
[1724263508221,56.085,141.73,141.67,7.0585]
[1724263508640,7.0563,141.72,141.66,24.7062]
[1724263508837,7.0563,141.72,141.66,17.6472]
[1724263508838,40.5868,141.71,141.66,17.6472]
[1724263509143,7.0568,141.71,141.66,17.6472]
[1724263509644,1.35141415,141.7,141.63,17.6515]
[1724263509822,7.0585,141.68,141.63,17.6515]
[1724263510027,33.53,141.69,141.63,24.712]
[1724263510624,1.35141415,141.68,141.6,52.9655]
[1724263510825,1.35141415,141.68,141.6,24.7167]
[1724263510826,7.0593,141.66,141.6,24.7167]
[1724263511030,7.0587,141.67,141.61,7.0616]
[1724263511245,20.0,141.68,141.61,7.0614]
[1724263511446,33.53,141.69,141.6,17.6551]
[1724263511657,7.0588,141.67,141.61,7.0612]
[1724263511947,20.0,141.68,141.6,17.6551]
[1724263512152,1.35141415,141.67,141.61,45.0]
[1724263512332,7.0591,141.66,141.61,7.0611]
[1724263512645,20.0,141.68,141.61,7.0616]
[1724263513037,7.0587,141.67,141.61,7.0616]
[1724263514556,23.5725,141.66,141.6,24.7171]
[1724263514729,43.29141415,141.67,141.6,24.7171]
[1724263514730,1.35141415,141.67,141.6,17.6551]
[1724263514927,20.0,141.68,141.6,17.6551]
[1724263515451,27.0586,141.68,141.62,7.061]
[1724263515652,7.0587,141.67,141.61,7.0611]
[1724263515830,20.0,141.68,141.6,17.6551]
[1724263516032,20.0,141.68,141.61,45.0]
[1724263516253,20.0,141.68,141.62,17.652]
[1724263516436,20.0,141.68,141.63,45.0]
[1724263516636,16.018,141.69,141.64,7.0599]
[1724263517798,7.0562,141.72,141.67,7.0585]
[1724263517943,7.0562,141.72,141.66,7.059]
[1724263518662,1.35141415,141.71,141.64,24.7088]
[1724263518837,58.5684,141.73,141.64,24.7088]
[1724263519158,7.0572,141.7,141.65,7.0596]
[1724263519361,1.35141415,141.69,141.63,7.0605]
[1724263520178,43.29141415,141.69,141.62,7.061]
[1724263520472,7.0592,141.66,141.61,24.7149]
[1724263521056,8.41061415,141.66,141.61,24.7149]
[1724263521230,7.0593,141.66,141.61,24.7149]
[1724263523360,7.0597,141.65,141.6,7.062]
[1724263523667,7.0615,141.62,141.59,0.09376518]
[1724263523835,1.35141415,141.64,141.59,0.09376518]
[1724263523836,20.0,141.64,141.59,0.09376518]
[1724263524334,27.0605,141.64,141.59,7.15606518]
[1724263524549,7.0592,141.66,141.61,7.0615]